bitfinex/quotes_SOLUSD_20251009
["timestamp","ask_amount","ask_price","bid_price","bid_amount"]
[1759992467512,2.71107027,227.98,227.92,31.49]
[1759992468124,2.71107027,227.98,227.92,35.87750438]
[1759992468799,0.68,227.98,227.92,35.87750438]
[1759992469207,6.41733838,227.99,227.92,35.87750438]
[1759992470611,6.41742701,227.98,227.92,35.87750438]
[1759992470786,2.03107027,227.97,227.92,31.49]
[1759992471188,2.03107027,227.97,227.92,35.87748609]
[1759992471807,6.41742701,227.98,227.92,35.18748609]
[1759992472111,6.41742701,227.98,227.93,0.69]
[1759992472607,2.03107027,227.98,227.93,0.69]
[1759992473000,7.09724639,227.99,227.93,5.07713309]
[1759992476411,4.38617612,227.99,227.93,5.07713309]
[1759992476609,150.00485443,228.01,227.94,2.72107027]
[1759992476808,134.8,228.01,227.95,2.72107027]
[1759992477010,134.8,228.01,227.97,2.03107027]
[1759992477206,134.8,228.01,227.98,0.69]
[1759992480317,134.8,228.01,227.96,33.54107027]
[1759992480516,134.8,228.01,227.96,32.85107027]
[1759992480711,2.71107027,228.0,227.94,0.69]
[1759992481115,7.09721787,228.0,227.94,0.69]
[1759992481314,7.09721787,228.0,227.94,5.07707191]
[1759992483123,134.8,227.99,227.94,5.07707191]
[1759992483618,134.8,227.99,227.95,0.69]
[1759992486019,134.8,227.99,227.95,5.07687986]
[1759992486429,139.18616079,227.99,227.95,0.69]
[1759992486628,134.8,227.99,227.95,0.69]
[1759992487004,139.18620834,227.99,227.94,4.38711248]
[1759992487314,139.18620834,227.99,227.94,5.10711248]
[1759992487524,139.84620834,227.99,227.94,5.10711248]
[1759992488827,134.8,227.98,227.94,5.10711248]
[1759992490825,134.8,227.98,227.89,10.9698383]
[1759992490826,139.1863734,227.98,227.89,10.9698383]
[1759992491128,135.46,227.97,227.9,33.57107027]
[1759992491516,135.46,227.97,227.91,0.72]
[1759992492630,135.46,227.97,227.92,6.41857465]
[1759992492835,135.46,227.97,227.92,7.13857465]
[1759992493708,134.8,227.97,227.92,7.13857465]
[1759992493915,0.66,227.96,227.92,6.41857465]
[1759992495137,0.66,227.96,227.91,4.38769689]
[1759992495339,165.62,227.97,227.91,4.38769689]
[1759992495523,2.03107027,227.93,227.85,4.38885231]
[1759992495714,2.03107027,227.9,227.84,0.1]
[1759992495922,2.03107027,227.88,227.84,0.1]
[1759992496432,2.69107027,227.88,227.84,0.1]
[1759992497365,20.8,227.83,227.79,0.1]
[1759992497511,2.03107027,227.81,227.79,0.1]
[1759992497711,30.94,227.8,227.79,0.1]
[1759992498040,31.56,227.8,227.79,0.1]
[1759992498346,33.31820311,227.8,227.79,0.1]
[1759992499241,37.70801873,227.8,227.79,0.1]
[1759992501233,48.58449394,227.8,227.79,0.1]
[1759992506056,48.58449394,227.8,227.73,0.1]
[1759992506256,2.65107027,227.79,227.73,0.1]
[1759992506447,10.87647521,227.76,227.73,0.1]
[1759992506648,2.03107027,227.74,227.73,0.1]
[1759992507374,3.7897372,227.74,227.73,0.1]
[1759992508561,8.18070936,227.74,227.73,0.1]
[1759992509066,19.67718457,227.74,227.73,0.1]
[1759992511368,21.70825484,227.74,227.73,1e-08]
[1759992511959,10.87647521,227.73,227.72,1e-08]
[1759992512156,36.06802586,227.71,227.7,1e-08]
[1759992512339,71.0501664,227.71,227.7,1e-08]
[1759992512543,71.6701664,227.71,227.7,1e-08]
[1759992512735,31.67647521,227.68,227.67,1e-08]
[1759992512970,64.62754548,227.68,227.67,1e-08]
[1759992513269,65.24754548,227.68,227.67,1e-08]
[1759992514145,69.63967478,227.68,227.67,1e-08]
[1759992515549,27.22319957,227.68,227.67,0.72000001]
[1759992515751,37.38319957,227.68,227.67,0.72000001]
[1759992516841,39.41426984,227.68,227.67,0.72000001]
[1759992519890,38.68805302,227.68,227.67,0.72000001]
[1759992521077,49.56452823,227.68,227.67,1e-08]
[1759992523264,18.60452823,227.68,227.67,1e-08]
[1759992523467,49.54452823,227.68,227.67,1e-08]
[1759992527060,50.16452823,227.68,227.67,1e-08]
[1759992527464,49.54452823,227.68,227.67,1e-08]
[1759992528077,48.23967478,227.68,227.67,1e-08]
[1759992528377,49.52452823,227.68,227.67,1e-08]
[1759992529162,48.21967478,227.68,227.67,1e-08]
[1759992529489,49.52452823,227.68,227.67,0.66000001]
[1759992529975,49.54452823,227.68,227.67,0.66000001]
[1759992530567,49.54452823,227.68,227.67,1e-08]
[1759992530764,50.16452823,227.68,227.67,1e-08]
[1759992531662,50.16452823,227.68,227.62,0.1]
[1759992531663,20.8,227.63,227.62,0.1]
[1759992531862,53.04485345,227.63,227.62,0.1]
[1759992532488,54.80444874,227.63,227.62,0.1]
[1759992533082,59.19754279,227.63,227.62,0.76]
[1759992533283,57.89268934,227.63,227.62,0.76]
[1759992533472,59.19754279,227.63,227.62,0.76]
[1759992535691,57.4379475,227.63,227.62,0.76]
[1759992537681,68.31442271,227.63,227.62,0.1]
[1759992540376,71.2510795,227.63,227.62,0.1]
[1759992541490,20.8,227.59,227.56,0.76]
[1759992541698,1.30485345,227.57,227.56,0.76]
[1759992542189,5.69910576,227.57,227.56,0.1]
[1759992542418,8.64035323,227.57,227.56,0.1]
[1759992542580,20.13682844,227.57,227.56,0.1]
[1759992543602,31.67647521,227.53,227.49,0.1]
[1759992543772,33.86124747,227.52,227.5,0.66]
[1759992544095,35.16576638,227.51,227.5,0.66]
[1759992544479,39.56117757,227.51,227.5,0.66]
[1759992545196,39.56117757,227.51,227.49,0.1]
[1759992545498,36.62026464,227.51,227.49,0.76]
[1759992547178,36.62026464,227.51,227.49,0.1]
[1759992547382,36.62026464,227.51,227.5,0.68]
[1759992548696,16.57673985,227.51,227.49,0.1]
[1759992548900,139.19560439,227.5,227.49,0.78]
[1759992549084,170.09560439,227.5,227.49,0.78]
[1759992549287,35.29560439,227.5,227.49,0.78]
[1759992550988,32.20485345,227.5,227.49,0.78]
[1759992552298,1.30485345,227.5,227.49,0.78]
[1759992552801,32.18485345,227.5,227.49,0.78]
[1759992553006,36.58045784,227.5,227.49,0.78]
[1759992554073,5.70045784,227.5,227.49,0.78]
[1759992554291,36.58045784,227.5,227.49,0.78]
[1759992555390,47.45693305,227.5,227.49,0.1]
[1759992555590,16.57693305,227.5,227.49,0.1]
[1759992555900,47.45693305,227.5,227.49,0.1]
[1759992556498,46.1520796,227.5,227.49,0.1]
[1759992556702,47.45693305,227.5,227.49,0.78]
[1759992558186,47.45693305,227.5,227.49,0.1]
[1759992558586,16.57693305,227.5,227.49,0.1]
[1759992558900,47.45693305,227.5,227.49,0.1]
[1759992560105,47.45693305,227.5,227.49,0.78]
[1759992560500,47.45693305,227.5,227.49,0.1]
[1759992561203,48.07693305,227.5,227.49,0.1]
[1759992561607,17.19693305,227.5,227.49,0.1]
[1759992561905,53.29634685,227.5,227.49,0.1]
[1759992562208,55.057259,227.5,227.49,0.1]
[1759992565312,68.98253313,227.5,227.47,0.1]
[1759992565492,32.98132866,227.45,227.44,0.1]
[1759992565808,69.82852217,227.45,227.44,0.1]
[1759992566007,70.44852217,227.45,227.44,0.1]
[1759992566988,1.30485345,227.36,227.27,12.30471074]
[1759992567314,30.9,227.35,227.27,12.30471074]
[1759992567483,30.9,227.35,227.34,0.68]
[1759992568182,35.2985045,227.35,227.34,0.68]
[1759992571511,36.60335795,227.35,227.34,0.68]
[1759992572601,36.60335795,227.35,227.28,4.39979689]
[1759992572805,36.60335795,227.35,227.33,0.78]
[1759992573000,35.2985045,227.35,227.34,0.68]
[1759992573204,47.47983316,227.35,227.34,0.68]
[1759992573597,53.00485345,227.35,227.34,0.68]
[1759992573908,51.7,227.35,227.34,0.68]
[1759992574992,1.30485345,227.36,227.34,0.68]
[1759992575287,30.9,227.35,227.34,0.68]
[1759992577006,35.2985045,227.35,227.34,0.68]
[1759992577404,36.60335795,227.35,227.34,0.68]
[1759992577804,30.9,227.35,227.34,0.68]
[1759992578205,35.2985045,227.35,227.34,0.68]
[1759992579422,30.9,227.35,227.34,0.68]
[1759992580499,35.2985045,227.35,227.34,0.68]
[1759992582331,30.9,227.35,227.34,0.68]
[1759992583220,139.19804026,227.38,227.34,0.68]
[1759992583420,30.9,227.37,227.34,0.68]
[1759992584125,35.29813252,227.37,227.34,0.68]
[1759992584823,30.9,227.37,227.34,0.68]
[1759992585220,35.29815221,227.37,227.34,0.68]
[1759992585716,134.8,227.38,227.34,2.72440601]
[1759992585913,134.8,227.38,227.36,2.04440601]
[1759992586117,134.8,227.38,227.37,0.71]
[1759992588117,134.8,227.38,227.35,0.71]
[1759992588313,30.9,227.37,227.35,0.71]
[1759992588508,30.9,227.37,227.36,0.71]
[1759992590222,30.9,227.37,227.33,0.1]
[1759992590444,30.9,227.37,227.34,0.71]
[1759992590719,30.9,227.37,227.33,0.1]
[1759992590720,30.9,227.37,227.35,0.71]
[1759992591229,30.9,227.37,227.33,0.1]
[1759992591230,35.29812331,227.37,227.33,0.1]
[1759992591428,35.29812331,227.37,227.33,0.81]
[1759992591821,30.9,227.37,227.34,0.71]
[1759992592014,30.9,227.37,227.35,0.71]
[1759992592414,30.9,227.37,227.33,0.81]
[1759992592727,30.9,227.37,227.34,0.71]
[1759992593114,30.9,227.37,227.35,0.71]
[1759992593921,30.9,227.37,227.33,6.54321154]
[1759992593922,30.9,227.37,227.33,0.81]
[1759992594230,30.9,227.37,227.34,0.71]
[1759992594407,30.9,227.37,227.33,0.1]
[1759992594608,30.9,227.37,227.34,0.71]
[1759992595737,30.9,227.37,227.35,0.71]
[1759992597015,30.9,227.37,227.33,0.1]
[1759992597216,30.9,227.37,227.34,0.71]
[1759992597435,30.9,227.37,227.35,0.71]
[1759992598428,30.9,227.36,227.35,0.71]
[1759992598943,30.9,227.36,227.33,0.1]
[1759992599240,32.94440601,227.36,227.33,0.1]
[1759992599826,37.34273804,227.36,227.33,0.1]
[1759992600330,2.04440601,227.34,227.33,0.1]
[1759992600519,32.94440601,227.34,227.33,0.1]
[1759992601031,37.34310399,227.34,227.33,0.1]
[1759992601216,39.38751,227.34,227.33,0.1]
[1759992603458,40.00751,227.34,227.33,0.1]
[1759992605017,37.34310399,227.34,227.33,0.1]
[1759992605438,39.38751,227.34,227.33,0.1]
[1759992606529,8.48751,227.34,227.33,0.1]
[1759992606730,39.38751,227.34,227.33,0.1]
[1759992608649,32.94440601,227.34,227.33,0.1]
[1759992608825,30.9,227.34,227.33,0.82]
[1759992610041,33.56440601,227.34,227.33,0.1]
[1759992610318,37.96310399,227.34,227.33,0.1]
[1759992611425,42.36314975,227.34,227.33,0.1]
[1759992611941,41.74314975,227.34,227.33,0.1]
[1759992613149,39.69874374,227.34,227.33,0.1]
[1759992615238,35.29869798,227.34,227.33,0.1]
[1759992615656,30.9,227.34,227.33,0.82]
[1759992615858,20.8,227.39,227.33,2.86440601]
[1759992616057,35.89513012,227.38,227.35,2.04440601]
[1759992616353,30.9,227.37,227.33,2.14440601]
[1759992616559,30.9,227.36,227.35,0.72]
[1759992617261,2.04440601,227.39,227.35,2.76440601]
[1759992617564,30.9,227.38,227.36,0.72]
[1759992617737,30.9,227.37,227.36,0.72]
[1759992618064,30.9,227.37,227.35,2.04440601]
[1759992618639,30.9,227.37,227.36,0.72]
[1759992618849,4.39755989,227.4,227.36,0.72]
[1759992619050,30.9,227.39,227.36,0.72]
[1759992619239,4.39792417,227.38,227.34,2.76440601]
[1759992619560,4.39792417,227.38,227.35,0.72]
[1759992619762,30.9,227.37,227.33,0.1]
[1759992619959,33.56440601,227.37,227.33,0.1]
[1759992620144,2.04440601,227.34,227.33,0.1]
[1759992620344,32.94440601,227.34,227.33,0.1]
[1759992621036,33.56440601,227.34,227.33,0.1]
[1759992621243,37.96310399,227.34,227.33,0.1]
[1759992621842,37.34310399,227.34,227.33,0.1]
[1759992622041,35.29869798,227.34,227.33,0.1]
[1759992622243,37.34310399,227.34,227.33,0.1]
[1759992622846,35.29869798,227.34,227.33,0.1]
[1759992623038,37.34310399,227.34,227.33,0.1]
[1759992624660,35.29869798,227.34,227.33,0.1]
[1759992624971,6.44310399,227.34,227.33,0.1]
[1759992625348,37.34310399,227.34,227.33,0.1]
[1759992626367,39.10494687,227.34,227.33,0.1]
[1759992630362,49.98142208,227.34,227.33,0.1]
[1759992630570,50.60142208,227.34,227.33,0.1]
[1759992631241,53.54841535,227.34,227.33,0.1]
[1759992633174,52.92841535,227.34,227.33,0.1]
[1759992635746,53.54841535,227.34,227.33,0.1]
[1759992636453,74.34841535,227.34,227.33,0.1]
[1759992637168,31.67647521,227.3,227.26,0.1]
[1759992637481,33.72088122,227.27,227.26,0.1]
[1759992637674,69.02093402,227.27,227.26,0.1]
[1759992637980,71.68534003,227.27,227.26,0.1]
[1759992638150,87.67697694,227.27,227.16,0.67]
[1759992638481,2.04440601,227.19,227.16,0.67]
[1759992638653,30.9,227.18,227.17,0.67]
[1759992638848,32.94440601,227.18,227.17,0.67]
[1759992639062,32.94440601,227.18,227.13,0.67]
[1759992639250,2.04440601,227.14,227.11,0.77]
[1759992639458,32.94440601,227.13,227.11,0.77]
[1759992639755,30.9,227.12,227.11,0.1]
[1759992640271,2.04440601,227.15,227.11,0.77]
[1759992640478,30.9,227.14,227.11,0.77]
[1759992640669,30.9,227.13,227.11,0.77]
[1759992640850,2.04440601,227.15,227.11,0.77]
[1759992641047,11.00214368,227.23,227.12,2.04440601]
[1759992641369,2.04440601,227.18,227.13,0.67]
[1759992641553,30.9,227.17,227.13,0.67]
[1759992642054,30.9,227.16,227.13,0.67]
[1759992642254,32.21047544,227.16,227.13,0.67]
[1759992642455,30.9,227.16,227.13,0.67]
[1759992642664,32.23047544,227.15,227.13,0.67]
[1759992643071,30.92,227.15,227.14,0.67]
[1759992645574,134.8,227.17,227.14,6.38304654]
[1759992645775,134.8,227.17,227.15,1.31047544]
[1759992645965,134.8,227.17,227.16,0.7]
[1759992646273,134.8,227.17,227.16,5.10218348]
[1759992646778,134.8,227.17,227.16,0.7]
[1759992647574,134.8,227.17,227.14,0.7]
[1759992647884,134.8,227.17,227.11,4.50304767]
[1759992647885,134.8,227.17,227.15,0.7]
[1759992648071,134.8,227.17,227.16,0.7]
[1759992648273,134.8,227.17,227.13,0.7]
[1759992648571,30.92,227.16,227.14,0.7]
[1759992648880,30.92,227.16,227.15,0.7]
[1759992649471,30.92,227.16,227.15,2.01047544]
[1759992649670,134.8,227.17,227.15,2.01047544]
[1759992649865,134.8,227.17,227.16,1.31047544]
[1759992650067,134.8,227.17,227.16,2.01047544]
[1759992651378,134.8,227.17,227.16,6.41265892]
[1759992651889,134.8,227.17,227.16,5.10218348]
[1759992653092,134.8,227.17,227.16,0.7]
[1759992653277,134.8,227.17,227.16,5.10218348]
[1759992653479,134.8,227.17,227.16,6.41265892]
[1759992654868,30.92,227.23,227.16,17.41811762]
[1759992655086,30.92,227.23,227.2,1.31047544]
[1759992655288,134.8,227.24,227.21,2.01047544]
[1759992655485,134.8,227.24,227.22,0.7]
[1759992655486,165.72,227.24,227.22,0.7]
[1759992655688,165.72,227.24,227.23,0.7]
[1759992656179,134.8,227.24,227.23,2.01047544]
[1759992657679,134.8,227.24,227.23,6.41130279]
[1759992659583,134.8,227.24,227.21,4.40119514]
[1759992659996,134.8,227.24,227.19,0.7]
[1759992659997,30.92,227.23,227.19,5.10142717]
[1759992660296,32.23047544,227.23,227.17,5.10184117]
[1759992660484,0.52,227.22,227.17,4.40184117]
[1759992660679,30.92,227.21,227.17,5.10184117]
[1759992662583,30.92,227.21,227.18,0.7]
[1759992662779,30.92,227.21,227.19,0.7]
[1759992663293,30.92,227.21,227.17,6.41231661]
[1759992663900,30.92,227.21,227.17,5.10184117]
[1759992664609,30.92,227.21,227.17,4.40184117]
[1759992664783,30.92,227.21,227.17,5.10184117]
[1759992665589,30.92,227.21,227.18,2.01047544]
[1759992665900,30.92,227.22,227.2,1.31047544]
[1759992666102,134.8,227.24,227.21,1.99047544]
[1759992666278,134.8,227.24,227.17,15.40681541]
[1759992666279,134.8,227.24,227.22,1.99047544]
[1759992667105,134.8,227.24,227.21,1.31047544]
[1759992667310,32.75047544,227.23,227.16,4.40218348]
[1759992667605,136.63047544,227.22,227.16,4.40218348]
[1759992667808,30.92,227.21,227.16,4.40218348]
[1759992667987,30.92,227.21,227.16,5.08218348]
[1759992668189,30.92,227.21,227.16,6.39265892]
[1759992668602,30.92,227.21,227.17,1.99047544]
[1759992668903,30.92,227.21,227.18,4.40179593]
[1759992669291,30.92,227.21,227.18,5.71227137]
[1759992669499,30.92,227.21,227.19,1.99047544]
[1759992669803,30.92,227.21,227.18,1.31047544]
[1759992670394,30.92,227.21,227.16,6.39263638]
[1759992670595,31.44,227.21,227.16,6.39263638]
[1759992670987,30.92,227.21,227.16,6.39263638]
[1759992671198,30.92,227.21,227.17,1.99047544]
[1759992671386,30.92,227.21,227.18,1.99047544]
[1759992671588,30.92,227.21,227.18,1.31047544]
[1759992673116,134.8,227.2,227.18,1.31047544]
[1759992673495,134.8,227.2,227.17,1.31047544]
[1759992673729,165.72,227.19,227.11,11.107576]
[1759992673892,134.8,227.18,227.15,1.31047544]
[1759992674394,134.8,227.18,227.16,1.31047544]
[1759992675696,134.8,227.18,227.16,1.99047544]
[1759992675901,134.8,227.18,227.16,6.39262484]
[1759992676102,134.8,227.18,227.16,5.71262484]
[1759992676319,134.8,227.18,227.16,4.4021494]
[1759992676623,134.8,227.18,227.15,4.4023756]
[1759992680505,134.8,227.18,227.15,1.31047544]
[1759992681022,134.8,227.18,227.14,0.68]
[1759992681023,134.8,227.18,227.14,1.99047544]
[1759992681896,30.92,227.17,227.14,1.99047544]
[1759992682223,30.92,227.17,227.14,1.31047544]
[1759992682532,30.92,227.17,227.14,6.39290458]
[1759992682818,30.92,227.17,227.15,1.99047544]
[1759992683027,30.92,227.17,227.14,4.40242914]
[1759992683028,165.72,227.18,227.16,1.99047544]
[1759992684612,165.72,227.18,227.15,1.31047544]
[1759992684915,0.52,227.17,227.14,5.71290458]
[1759992685430,165.72,227.18,227.14,6.39290458]
[1759992685796,165.72,227.18,227.15,1.99047544]
[1759992686025,165.72,227.18,227.16,0.68]
[1759992686218,165.72,227.18,227.15,1.31047544]
[1759992686619,165.72,227.18,227.15,1.99047544]
[1759992688801,165.72,227.18,227.15,1.31047544]
[1759992689629,165.72,227.18,227.14,5.71292389]
[1759992689926,165.72,227.18,227.14,6.39292389]
[1759992691432,165.72,227.18,227.12,4.40279131]
[1759992691608,1.83047544,227.17,227.11,0.1]
[1759992691808,1.31047544,227.15,227.11,0.1]
[1759992692009,30.92,227.14,227.11,0.1]
[1759992693209,30.92,227.14,227.11,4.5031261]
[1759992693440,30.92,227.14,227.11,5.81360154]
[1759992694126,30.92,227.14,227.11,1.41047544]
[1759992694425,30.92,227.14,227.11,5.81359441]
[1759992694630,30.92,227.14,227.11,0.1]
[1759992699617,30.92,227.13,227.11,0.1]
[1759992699824,0.52,227.15,227.11,0.1]
[1759992700021,30.92,227.14,227.11,0.1]
[1759992700827,30.92,227.14,227.12,0.66]
[1759992701531,30.92,227.14,227.11,0.1]
[1759992702432,35.32265399,227.14,227.11,0.1]
[1759992702619,0.52,227.13,227.11,0.1]
[1759992702819,30.92,227.12,227.11,0.1]
[1759992705426,33.48815644,227.12,227.11,0.1]
[1759992705634,37.89111522,227.12,227.11,0.1]
[1759992707341,31.44,227.12,227.11,0.1]
[1759992708814,30.92,227.12,227.11,0.1]
[1759992709238,31.44,227.12,227.11,0.1]
[1759992709840,30.92,227.12,227.11,0.1]
[1759992711139,20.8,227.15,227.11,0.1]
[1759992711315,30.92,227.14,227.11,0.1]
[1759992711521,33.48815644,227.14,227.11,0.1]
[1759992711722,2.04815644,227.13,227.11,0.1]
[1759992711941,30.92,227.12,227.11,0.1]
[1759992712550,29.75827559,227.12,227.11,0.1]
[1759992714337,21.32,227.15,227.11,0.1]
[1759992714338,20.8,227.15,227.11,0.77]
[1759992714536,30.92,227.14,227.11,0.77]
[1759992714739,30.92,227.14,227.12,0.67]
[1759992714933,30.92,227.14,227.11,0.1]
[1759992716041,35.32263483,227.14,227.11,0.1]
[1759992716435,30.92,227.14,227.11,0.1]
[1759992716646,37.37168755,227.14,227.12,0.67]
[1759992716846,30.92,227.14,227.12,0.67]
[1759992717144,37.47146798,227.14,227.12,0.67]
[1759992717637,134.8,227.13,227.12,0.67]
[1759992717846,134.8,227.13,227.11,2.14815644]
[1759992718050,134.8,227.13,227.12,2.04815644]
[1759992718234,134.8,227.13,227.12,7.12111522]
[1759992718434,134.8,227.13,227.12,2.71815644]
[1759992718753,134.8,227.13,227.12,7.12111522]
[1759992719143,134.8,227.13,227.12,0.67]
[1759992719342,134.8,227.13,227.12,2.71815644]
[1759992721051,134.8,227.13,227.12,0.67]
[1759992722430,134.8,227.13,227.12,7.12111522]
[1759992726777,7.12111522,227.19,227.12,7.12111522]
[1759992726941,165.7,227.21,227.18,2.04815644]
[1759992728368,165.7,227.21,227.11,0.1]
[1759992728369,2.04815644,227.19,227.11,0.1]
[1759992728557,166.22,227.18,227.11,0.1]
[1759992728856,37.35025023,227.17,227.11,4.50313911]
[1759992729161,0.52,227.16,227.11,4.50313911]
[1759992729469,165.7,227.15,227.11,0.1]
[1759992729638,2.04815644,227.12,227.11,0.1]
[1759992729844,30.9,227.12,227.11,0.1]
[1759992730140,20.8,227.16,227.11,2.14815644]
[1759992730340,2.04815644,227.14,227.11,2.86815644]
[1759992730741,30.9,227.14,227.11,2.14815644]
[1759992731139,31.42,227.14,227.11,0.1]
[1759992732458,30.9,227.14,227.11,0.1]
[1759992732656,30.9,227.14,227.11,2.14815644]
[1759992732956,30.9,227.14,227.12,2.04815644]
[1759992733147,30.9,227.14,227.12,2.76815644]
[1759992733543,30.9,227.14,227.13,2.04815644]
[1759992733733,30.9,227.14,227.13,2.76815644]
[1759992733936,20.8,227.19,227.13,2.76815644]
[1759992734140,30.9,227.18,227.17,2.04815644]
[1759992735740,13.22080955,227.2,227.17,2.76815644]
[1759992736080,2.94017039,227.2,227.19,2.04815644]
[1759992736245,165.7,227.21,227.19,2.04815644]
[1759992736774,165.7,227.21,227.18,2.76815644]
[1759992737953,165.7,227.21,227.19,2.04815644]
[1759992738556,165.7,227.21,227.18,2.04815644]
[1759992739546,2.04815644,227.19,227.11,21.62]
[1759992739751,31.42,227.18,227.13,6.45086802]
[1759992739938,0.52,227.17,227.11,2.14815644]
[1759992740139,30.9,227.16,227.11,6.5512768]
[1759992740344,0.52,227.15,227.11,0.1]
[1759992740542,31.42,227.14,227.11,0.1]
[1759992741956,30.9,227.14,227.11,0.1]
[1759992742151,30.9,227.14,227.12,2.04815644]
[1759992742462,30.9,227.14,227.12,2.76815644]
[1759992743153,30.9,227.14,227.13,2.04815644]
[1759992744959,30.9,227.14,227.12,0.72]
[1759992745166,30.9,227.14,227.13,2.04815644]
[1759992745767,30.9,227.14,227.12,0.72]
[1759992746058,0.52,227.13,227.11,0.1]
[1759992746446,30.9,227.12,227.11,0.1]
[1759992746645,30.9,227.12,227.11,2.14815644]
[1759992750644,30.9,227.12,227.11,0.1]
[1759992750866,37.87111522,227.12,227.1,0.1]
[1759992751170,15.86418082,227.11,227.1,0.1]
[1759992751665,25.25200752,227.11,227.1,0.1]
[1759992751857,58.20016396,227.11,227.1,0.1]
[1759992752253,60.13516017,227.11,227.1,0.1]
[1759992752563,80.93339679,227.11,227.1,0.1]
[1759992752770,82.98152345,227.11,227.1,0.1]
[1759992754244,34.75272358,227.11,227.1,0.1]
[1759992754445,62.71598314,227.11,227.1,0.1]
[1759992754846,41.91598314,227.11,227.1,0.82]
[1759992755271,41.91598314,227.11,227.1,0.1]
[1759992756875,11.01598314,227.11,227.1,0.1]
[1759992757062,41.91598314,227.11,227.1,0.1]
[1759992760554,46.31913579,227.11,227.1,0.1]
[1759992760783,48.36729223,227.11,227.1,0.1]
[1759992761285,17.46729223,227.11,227.1,0.1]
[1759992761463,48.36729223,227.11,227.1,0.1]
[1759992763370,48.78729223,227.11,227.1,0.1]
[1759992763974,48.05094976,227.11,227.1,0.1]
[1759992766897,47.63094976,227.11,227.1,0.1]
[1759992767099,48.05094976,227.11,227.1,0.1]
[1759992768589,68.85094976,227.11,227.1,0.1]
[1759992769370,79.72742497,227.11,227.1,0.1]
[1759992769569,31.67647521,227.07,227.0,0.68]
[1759992769784,1.31181397,227.01,226.99,0.68]
[1759992769995,30.9,227.0,226.94,1.31181397]
[1759992770190,30.9,226.99,226.95,1.31181397]
[1759992770380,1.31181397,227.01,226.96,5.08606274]
[1759992770567,30.9,227.0,226.97,0.68]
[1759992770967,1.31181397,227.02,226.97,0.68]
[1759992771260,1.31181397,227.04,226.97,1.99181397]
[1759992771465,30.9,227.03,226.98,1.99181397]
[1759992771671,30.9,227.02,226.99,0.68]
[1759992772386,30.9,227.02,226.99,5.08529056]
[1759992772593,30.9,227.02,227.0,0.68]
[1759992773587,136.11181397,227.06,227.0,1.99181397]
[1759992773791,30.9,227.05,227.0,1.99181397]
[1759992774089,1.31181397,227.03,227.01,0.68]
[1759992774287,30.9,227.03,227.01,0.68]
[1759992774491,1.31181397,227.02,227.01,0.68]
[1759992774788,32.21181397,227.02,226.98,5.08548387]
[1759992774977,32.21181397,227.02,226.99,0.68]
[1759992775173,32.21181397,227.02,227.0,0.68]
[1759992775867,36.61729784,227.02,227.0,0.68]
[1759992776594,32.21181397,227.02,227.0,0.68]
[1759992776996,1.31181397,227.01,226.98,0.68]
[1759992777296,30.9,227.0,226.99,0.68]
[1759992779182,30.9,227.0,226.97,5.08585527]